bitfinex/quotes_ETHUSD_20250803
["timestamp","ask_amount","ask_price","bid_price","bid_amount"]
[1754229120387,0.001,3495.5,3494.2,3.55]
[1754229120594,0.4526,3495.0,3494.3,4.378]
[1754229120916,0.4469,3494.7,3493.9,0.4728]
[1754229121063,0.4516,3494.6,3494.0,4.378]
[1754229121391,0.4469,3494.5,3494.0,4.378]
[1754229121588,0.001,3494.8,3494.0,4.378]
[1754229121797,0.8985,3494.4,3494.0,4.378]
[1754229121965,0.001,3494.8,3494.0,4.378]
[1754229122309,0.8995,3494.8,3494.0,4.378]
[1754229122511,0.4479,3494.8,3494.0,4.378]
[1754229122809,0.4516,3494.7,3494.0,4.378]
[1754229123218,0.4469,3494.6,3494.0,4.378]
[1754229123385,0.4516,3494.5,3494.0,4.378]
[1754229123584,0.4469,3494.4,3494.0,4.378]
[1754229123881,0.8985,3494.3,3493.7,0.616]
[1754229124099,0.8985,3494.3,3494.1,4.377]
[1754229126707,0.001,3494.8,3493.5,6.883]
[1754229126708,0.8985,3494.2,3493.5,6.883]
[1754229126872,0.8985,3494.2,3493.6,4.377]
[1754229127071,0.8985,3494.2,3493.7,0.860604]
[1754229127386,0.8985,3494.1,3493.8,4.377]
[1754229127582,0.8985,3494.0,3493.8,4.377]
[1754229127794,0.8985,3493.9,3493.8,4.377]
[1754229128584,0.4516,3494.5,3493.8,4.377]
[1754229128785,0.4516,3494.5,3493.9,0.4728]
[1754229129703,0.4516,3494.5,3493.8,4.377]
[1754229130294,0.4516,3494.5,3493.9,0.4516]
[1754229130493,0.4469,3494.4,3494.0,4.377]
[1754229130713,0.8985,3494.4,3494.0,4.377]
[1754229131041,0.4516,3494.3,3494.0,4.377]
[1754229131521,0.4516,3494.2,3494.0,4.377]
[1754229131721,0.4469,3494.3,3494.0,4.377]
[1754229131924,0.001,3494.8,3494.0,4.377]
[1754229132130,0.8985,3494.2,3494.0,4.377]
[1754229132631,0.4516,3494.1,3493.9,0.4516]
[1754229132841,0.8985,3494.1,3493.9,4.377]
[1754229133129,0.4469,3494.0,3493.9,4.377]
[1754229133419,0.8985,3494.0,3493.9,4.377]
[1754229134690,0.4469,3494.6,3493.9,4.377]
[1754229135529,0.4516,3494.7,3493.9,4.8498]
[1754229136093,0.4516,3494.7,3494.0,0.4728]
[1754229136292,0.001,3494.8,3494.0,0.4728]
[1754229136615,0.001,3494.5,3494.0,0.4728]
[1754229136926,0.001,3494.5,3494.1,0.547]
[1754229137293,0.001,3494.5,3494.1,0.1432]
[1754229137494,0.001,3494.5,3494.2,0.8766]
[1754229137708,0.001,3494.5,3494.3,4.377]
[1754229137908,0.001,3494.5,3494.3,5.2536]
[1754229138103,0.001,3494.5,3494.3,4.7808]
[1754229138311,0.001,3494.5,3494.4,0.4728]
[1754229138511,0.001,3494.5,3494.3,4.377]
[1754229138696,0.001,3494.5,3494.3,4.491732]
[1754229138911,0.8995,3494.5,3494.3,4.491732]
[1754229139623,0.001,3494.5,3494.3,4.491732]
[1754229139824,0.001,3494.5,3494.3,0.114732]
[1754229140029,0.001,3494.5,3494.4,4.377]
[1754229141835,0.001,3494.5,3494.3,0.114732]
[1754229142059,0.001,3494.5,3494.4,4.377]
[1754229142748,0.001,3494.5,3494.4,4.8498]
[1754229142923,0.001,3494.5,3494.4,4.87841721]
[1754229143114,0.001,3494.5,3494.4,5.42541721]
[1754229143309,0.001,3494.5,3494.4,5.3968]
[1754229143900,0.001,3494.5,3494.4,5.42541721]
[1754229144746,0.001,3494.5,3494.4,5.3968]
[1754229145239,0.001,3494.5,3494.4,5.42541721]
[1754229145639,0.001,3494.5,3494.4,5.97541721]
[1754229145845,0.001,3494.8,3494.5,0.55]
[1754229146045,0.001,3494.9,3494.7,20.65656454]
[1754229146341,0.001,3494.9,3494.8,4.40461394]
[1754229146537,0.001,3494.9,3494.8,5.28121394]
[1754229148172,0.001,3494.9,3494.8,5.39590694]
[1754229148673,0.4516,3496.0,3494.8,5.39590694]
[1754229148674,4.376,3497.6,3494.9,0.55]
[1754229148994,0.4764,3497.0,3495.4,3.55]
[1754229149283,0.4764,3496.9,3496.1,0.1432]
[1754229149452,0.4764,3496.9,3496.2,4.376]
[1754229150880,0.4764,3497.2,3496.3,0.02860166]
[1754229151034,0.4764,3497.2,3496.2,4.376]
[1754229151240,0.4764,3497.2,3496.5,0.1432]
[1754229151470,0.4764,3497.2,3496.6,4.376]
[1754229151788,0.4764,3497.7,3496.6,4.376]
[1754229152070,0.4764,3497.7,3496.7,0.91839839]
[1754229152379,0.4764,3497.7,3496.8,0.486]
[1754229152595,0.4355,3497.8,3496.8,0.486]
[1754229152596,0.4355,3497.8,3497.2,0.1432]
[1754229152774,0.001,3498.0,3497.3,4.375]
[1754229153082,0.001,3498.0,3497.3,0.486]
[1754229153370,0.001,3498.0,3497.2,0.1432]
[1754229153371,0.9129,3498.0,3497.4,4.375]
[1754229153587,0.4764,3497.9,3497.4,4.375]
[1754229153749,0.001,3498.0,3497.4,4.375]
[1754229154151,0.001,3498.0,3497.4,4.5182]
[1754229154355,0.4764,3497.9,3497.5,4.375]
[1754229154677,0.9119,3497.8,3497.6,4.375]
[1754229154862,0.001,3498.0,3497.7,4.375]
[1754229155063,0.9119,3497.7,3497.6,4.375]
[1754229155800,0.9119,3497.7,3497.5,4.374]
[1754229155995,0.9119,3497.6,3496.1,0.486]
[1754229156201,0.4355,3497.5,3496.5,0.1432]
[1754229156504,0.9119,3497.5,3496.5,0.1432]
[1754229156699,3.0,3497.8,3496.5,0.1432]
[1754229157011,0.9119,3497.4,3496.5,0.1432]
[1754229157321,0.9119,3497.3,3496.6,0.859859]
[1754229157602,0.9119,3497.2,3496.6,0.859859]
[1754229157898,0.9119,3497.2,3496.7,4.374]
[1754229158084,0.001,3498.0,3496.7,4.374]
[1754229158398,0.9119,3497.1,3496.6,0.859859]
[1754229158598,0.9119,3497.0,3496.7,4.374]
[1754229158799,0.9119,3496.9,3496.7,4.374]
[1754229158962,0.001,3498.0,3496.7,4.374]
[1754229159304,0.9119,3496.8,3496.7,4.374]
[1754229159686,0.4764,3497.4,3496.7,4.374]
[1754229159884,0.4764,3497.4,3496.6,0.114658]
[1754229159885,0.4355,3497.3,3496.6,0.114658]
[1754229160196,0.4355,3497.3,3496.7,4.374]
[1754229160612,0.4764,3497.2,3496.6,0.114658]
[1754229160776,0.4764,3497.2,3496.7,4.374]
[1754229160978,0.4355,3497.1,3496.7,4.374]
[1754229161173,0.4764,3497.0,3496.7,4.374]
[1754229161607,0.4764,3497.3,3496.7,4.374]
[1754229161815,0.4764,3497.2,3496.7,4.374]
[1754229162318,0.4355,3497.1,3496.7,4.374]
[1754229162612,0.9119,3497.0,3496.8,4.373]
[1754229162924,0.4764,3496.9,3496.8,4.373]
[1754229163525,0.4355,3497.0,3496.8,4.373]
[1754229163821,0.9119,3497.0,3496.8,4.373]
[1754229164705,0.9119,3497.0,3496.9,3.42]
[1754229164912,0.001,3497.7,3496.9,7.793]
[1754229165110,0.001,3497.7,3497.0,3.42]
[1754229165525,0.9119,3497.6,3497.1,4.373]
[1754229165725,0.001,3497.7,3497.1,4.373]
[1754229165726,0.9119,3497.5,3497.1,4.373]
[1754229165894,0.001,3497.7,3497.1,4.373]
[1754229166113,0.9119,3497.4,3497.0,3.42]
[1754229166306,0.9119,3497.3,3497.0,7.793]
[1754229166544,0.9119,3497.2,3497.0,7.793]
[1754229166741,0.001,3497.7,3497.0,7.793]
[1754229167039,0.9119,3497.1,3497.0,7.793]
[1754229167209,0.9119,3497.1,3497.0,3.42]
[1754229169527,3.0,3496.9,3495.2,0.486]
[1754229169717,3.0,3496.7,3495.2,0.6292]
[1754229169906,3.0,3496.7,3494.9,4.373]
[1754229169907,0.4355,3496.8,3495.5,0.1432]
[1754229170099,0.4355,3496.8,3495.6,0.486]
[1754229170100,0.4764,3496.7,3495.6,0.486]
[1754229170467,0.4355,3496.6,3495.4,4.377]
[1754229170739,0.4764,3496.5,3495.4,4.377]
[1754229170917,30.0,3496.4,3495.3,0.486]
[1754229171118,0.55,3496.9,3495.3,0.486]
[1754229171357,3.0,3496.6,3495.2,0.1432]
[1754229171556,1.2669,3496.8,3495.3,0.486]
[1754229171836,3.0,3496.4,3495.3,0.8898]
[1754229172037,0.9119,3496.3,3495.3,0.8898]
[1754229172336,0.4764,3496.2,3495.3,0.8898]
[1754229173043,0.4764,3496.6,3495.4,0.8898]
[1754229173237,0.4764,3496.6,3495.4,0.1432]
[1754229173409,0.4764,3496.6,3495.5,0.8898]
[1754229173609,0.4764,3496.6,3495.6,0.486]
[1754229174024,0.4764,3496.6,3495.7,0.4038]
[1754229174541,0.4764,3496.6,3495.8,0.486]
[1754229175042,0.4764,3497.0,3495.9,3.42]
[1754229175358,0.4764,3497.0,3496.0,3.906]
[1754229175730,0.4355,3496.9,3496.0,3.906]
[1754229176055,0.4764,3496.8,3496.0,3.906]
[1754229176545,0.9119,3496.8,3496.0,3.42]
[1754229176850,0.9119,3496.7,3496.0,3.42]
[1754229177211,0.4355,3496.7,3496.0,3.42]
[1754229177406,0.4764,3496.6,3496.0,3.42]
[1754229179453,0.4764,3496.6,3496.1,3.42]
[1754229180134,0.4536,3496.5,3496.1,3.42]
[1754229180304,0.887,3496.5,3496.1,3.42]
[1754229180509,0.4334,3496.5,3496.1,3.42]
[1754229180858,0.887,3496.4,3496.1,3.42]
[1754229181207,0.4536,3496.3,3496.1,3.42]
[1754229181431,0.887,3496.2,3495.9,3.42]
[1754229181623,0.887,3496.1,3495.9,3.42]
[1754229181912,0.887,3496.0,3495.9,3.42]
[1754229185353,0.887,3496.0,3495.5,0.002]
[1754229185658,0.887,3495.9,3495.5,0.002]
[1754229185956,0.887,3495.9,3495.5,3.422]
[1754229186142,0.887,3495.8,3495.5,3.422]
[1754229186338,30.0,3496.1,3495.5,3.422]
[1754229186514,0.887,3495.7,3495.5,3.422]
[1754229186720,0.887,3496.0,3495.5,3.422]
[1754229186919,3.0,3496.7,3495.5,3.422]
[1754229187120,0.4334,3496.9,3495.6,4.2793]
[1754229187316,0.4334,3496.9,3495.6,7.802]
[1754229187317,30.0,3496.8,3495.6,7.802]
[1754229187556,40.0,3496.4,3495.6,3.42]
[1754229187856,3.0,3496.1,3495.5,0.002]
[1754229188054,5.86824707,3496.1,3495.5,0.002]
[1754229188244,0.887,3496.0,3495.5,0.002]
[1754229188634,0.887,3495.9,3495.5,0.002]
[1754229189059,0.887,3495.8,3495.5,0.002]
[1754229189936,0.4536,3495.8,3495.5,0.002]
[1754229190263,3.0,3496.1,3495.6,0.4555]
[1754229190973,3.4536,3496.1,3495.6,0.4555]
[1754229191180,3.4536,3496.1,3495.6,3.8755]
[1754229191467,3.0,3496.1,3495.6,3.42]
[1754229191774,0.887,3496.0,3495.6,3.42]
[1754229191974,0.4334,3496.0,3495.6,3.42]
[1754229192287,0.4536,3495.9,3495.6,3.42]
[1754229194378,0.4334,3496.0,3495.6,3.42]
[1754229194676,3.4536,3496.1,3495.6,3.42]
[1754229194876,3.887,3496.1,3495.6,3.42]
[1754229195273,3.4334,3496.1,3495.6,3.42]
[1754229195455,0.887,3496.0,3495.6,3.42]
[1754229195654,0.4536,3495.9,3495.6,3.42]
[1754229196166,3.4536,3496.1,3495.6,3.42]
[1754229196956,3.4536,3496.1,3495.6,3.8755]
[1754229197156,3.4536,3496.1,3495.7,3.42]
[1754229197352,0.4536,3496.1,3495.7,3.42]
[1754229198245,3.0,3496.2,3495.7,3.42]
[1754229198447,0.4536,3496.0,3495.7,3.42]
[1754229198846,0.887,3496.0,3495.7,3.42]
[1754229199181,0.4536,3495.9,3495.7,3.42]
[1754229200057,3.4536,3496.2,3495.7,3.42]
[1754229200253,0.4536,3496.0,3495.7,3.42]
[1754229200454,0.887,3496.0,3495.7,3.42]
[1754229200781,0.4536,3495.9,3495.7,3.42]
[1754229202582,0.4334,3496.0,3495.7,3.42]
[1754229202781,0.4536,3496.1,3495.7,3.42]
[1754229203292,0.887,3496.0,3495.8,3.42]
[1754229203606,0.4536,3495.9,3495.8,3.42]
[1754229204161,0.887,3495.9,3495.8,3.42]
[1754229205107,33.0,3495.8,3495.5,0.002]
[1754229205401,30.0,3495.7,3495.5,0.002]
[1754229205902,30.887,3495.6,3495.5,0.002]
[1754229208175,35.264,3495.6,3495.5,0.002]
[1754229208966,30.887,3495.6,3495.5,0.002]
[1754229209164,4.376,3495.6,3495.5,0.002]
[1754229210545,5.3024,3495.6,3495.5,0.002]
[1754229210697,5.83527012,3495.6,3495.5,0.002]
[1754229211692,38.3024,3495.6,3495.5,0.002]
[1754229216970,38.8524,3495.6,3495.5,0.002]
[1754229218377,39.24778758,3495.6,3495.5,0.002]
[1754229218676,39.1393,3495.6,3495.5,0.002]
[1754229219215,40.8613,3495.6,3495.5,0.002]
[1754229219393,41.25668758,3495.6,3495.5,0.002]
[1754229219571,39.86370365,3495.6,3495.5,0.002]
[1754229219771,44.24770365,3495.6,3495.5,0.002]
[1754229220607,39.86370365,3495.6,3495.5,0.002]
[1754229220811,44.24670365,3495.6,3495.5,0.002]
[1754229221402,44.59588278,3495.6,3495.5,0.002]
[1754229221579,40.21288278,3495.6,3495.5,0.002]
[1754229221781,44.59588278,3495.6,3495.5,0.002]
[1754229222617,40.21288278,3495.6,3495.5,0.002]
[1754229222915,34.19631607,3495.6,3495.5,0.002]
[1754229223080,38.17764707,3495.6,3495.5,0.002]
[1754229223286,42.12303465,3495.6,3495.5,0.002]
[1754229224335,42.40993465,3495.6,3495.5,0.002]
[1754229224515,38.02693465,3495.6,3495.5,0.002]
[1754229224814,42.40993465,3495.6,3495.5,0.002]
[1754229226792,40.80724707,3495.6,3495.5,0.002]
[1754229226993,41.73364707,3495.6,3495.5,0.002]
[1754229231627,43.45564707,3495.6,3495.5,0.002]
[1754229231928,41.73364707,3495.6,3495.5,0.002]
[1754229232131,35.86824707,3495.6,3495.5,0.002]
[1754229232343,30.0,3496.0,3495.5,0.8659]
[1754229232546,30.0,3495.8,3495.6,0.8639]
[1754229232835,7.387,3495.7,3495.6,0.4601]
[1754229234141,7.387,3495.7,3495.5,0.002]
[1754229234494,7.387,3495.7,3495.5,0.4621]
[1754229234830,7.387,3495.7,3495.5,0.002]
[1754229235138,7.387,3495.7,3495.6,0.4601]
[1754229235443,7.387,3495.7,3495.5,0.002]
[1754229235825,3.55,3496.0,3495.5,0.4621]
[1754229236032,43.0,3495.7,3495.6,0.4601]
[1754229236237,7.385,3495.7,3495.6,0.4601]
[1754229236805,3.0,3495.7,3495.6,0.4601]
[1754229237117,3.0,3495.7,3495.5,0.002]
[1754229237118,7.385,3495.7,3495.5,0.002]
[1754229239544,7.8575,3495.7,3495.5,0.002]
[1754229240040,7.385,3495.7,3495.5,0.002]
[1754229241328,3.0,3495.7,3495.5,0.002]
[1754229241533,4.381,3495.6,3495.5,0.4822]
[1754229242428,30.0,3496.0,3495.5,0.4822]
[1754229242614,4.38,3495.9,3495.5,0.886]
[1754229242814,4.38,3495.9,3495.6,0.4802]
[1754229242815,3.0,3495.8,3495.6,0.4802]
[1754229243135,4.381,3495.8,3495.7,0.4802]
[1754229243317,3.0,3495.7,3495.5,0.002]
[1754229243504,4.381,3495.8,3495.5,0.002]
[1754229243826,4.382,3495.7,3495.5,0.002]
[1754229244145,4.382,3495.7,3495.6,0.4802]
[1754229244441,4.382,3495.7,3495.5,0.002]
[1754229244640,3.02630117,3495.6,3495.5,0.002]
[1754229244797,3.4725,3495.6,3495.5,0.002]
[1754229245432,3.0,3495.6,3495.5,0.002]
[1754229247146,3.4725,3495.6,3495.5,0.002]
[1754229248834,3.0,3495.6,3495.5,0.002]
[1754229249343,3.4725,3495.6,3495.5,0.002]
[1754229249525,33.9237,3495.6,3495.5,0.002]
[1754229250747,33.0,3495.6,3495.5,0.002]
[1754229251053,4.378,3495.6,3495.5,0.886]
[1754229251219,0.001,3496.0,3495.5,4.306]
[1754229251546,3.0,3495.8,3495.6,0.884]
[1754229251744,4.38,3496.0,3495.5,3.422]
[1754229252040,4.38,3496.0,3495.7,0.884]
[1754229252409,4.38,3496.0,3495.8,0.884]
[1754229252609,0.001,3496.0,3495.9,0.884]
[1754229252809,4.38,3496.0,3495.9,0.884]
[1754229254034,4.38,3496.0,3495.9,0.4802]
[1754229256362,0.001,3496.0,3495.9,0.884]
[1754229256960,0.001,3496.0,3495.9,0.4802]
[1754229257167,0.001,3496.0,3495.9,0.884]
[1754229261753,0.001,3496.0,3495.9,20.3723488]
[1754229262076,0.001,3496.0,3495.9,20.5155488]
[1754229264648,0.001,3496.0,3495.9,3.5632]
[1754229264959,0.001,3496.0,3495.9,3.42]
[1754229265677,0.001,3496.5,3495.9,4.304]
[1754229265892,0.001,3496.5,3495.8,4.376]
[1754229265893,0.001,3496.5,3496.2,16.2115488]
[1754229266101,0.001,3496.5,3496.3,4.376]
[1754229266415,0.001,3496.5,3496.3,5.26]
[1754229266551,0.001,3496.5,3496.3,4.376]
[1754229266752,0.001,3496.5,3496.4,0.884]
[1754229267317,0.001,3496.5,3496.4,4.304]
[1754229267598,0.001,3496.5,3496.4,4.418646]
[1754229267890,0.001,3496.5,3496.4,4.561846]
[1754229268922,0.001,3496.5,3496.4,4.59044684]
[1754229269920,0.001,3496.5,3496.4,4.561846]
[1754229270599,0.001,3496.5,3496.4,8.540446]
[1754229271124,0.001,3496.5,3496.4,5.120446]
[1754229271621,0.001,3496.5,3496.4,5.524246]
[1754229274847,0.001,3496.5,3496.4,5.120446]
[1754229275046,0.001,3496.5,3496.4,0.257846]
[1754229275352,0.9389,3496.5,3496.4,4.375]
[1754229275528,0.9389,3496.5,3496.2,3.42]
[1754229275703,0.4543,3496.4,3496.3,4.377]
[1754229275906,0.9379,3496.4,3496.3,4.377]
[1754229276117,0.9379,3496.4,3496.2,3.42]
[1754229276338,0.001,3496.5,3496.3,4.377]
[1754229276758,0.001,3496.5,3496.3,4.40560166]
[1754229276933,0.001,3496.5,3496.4,3.0]
[1754229277132,0.001,3496.5,3496.4,6.42]
[1754229278202,0.001,3496.5,3496.4,6.9076]
[1754229278802,0.001,3496.5,3496.4,3.9076]
[1754229279112,0.001,3496.5,3496.4,3.42]
[1754229279530,0.001,3496.5,3496.4,3.93620084]
[1754229279810,0.1419,3497.4,3496.4,4.426046]
[1754229280140,0.1419,3497.4,3496.6,0.1432]
[1754229280328,0.1419,3497.4,3496.7,4.38]
[1754229280538,0.1419,3497.4,3496.7,4.8676]
[1754229281956,0.4836,3497.3,3496.7,4.8676]
[1754229282941,0.4836,3497.3,3496.8,3.42]
[1754229283467,0.9379,3497.3,3496.9,0.4876]
[1754229283667,0.9379,3497.3,3497.0,4.379]
[1754229284352,0.9389,3497.6,3497.1,3.42]
[1754229284559,0.4836,3497.5,3497.2,3.42]
[1754229284735,0.4543,3497.5,3497.2,3.42]
[1754229284931,0.9379,3497.4,3497.2,3.42]
[1754229286045,0.4543,3497.4,3497.2,3.42]
[1754229286355,0.4836,3497.3,3497.2,3.42]
[1754229286760,0.9379,3497.3,3497.2,3.42]
[1754229288841,0.9379,3497.3,3497.1,3.42]
[1754229289053,0.001,3497.6,3497.1,3.42]
[1754229289253,0.9379,3497.5,3497.1,3.42]
[1754229289455,0.4543,3497.4,3497.1,3.42]
[1754229289658,0.4836,3497.4,3497.1,3.42]
[1754229289856,0.4543,3497.3,3497.1,3.42]
[1754229290067,0.001,3497.6,3497.1,3.42]
[1754229290240,0.9389,3497.3,3497.1,3.42]
[1754229290444,0.001,3497.3,3497.1,3.42]
[1754229290763,0.9379,3497.2,3497.1,3.42]
[1754229291881,0.001,3497.3,3497.1,3.42]
[1754229292080,0.001,3497.3,3497.2,0.4876]
[1754229292379,0.001,3497.3,3497.2,4.8616]
[1754229292586,0.001,3497.3,3497.2,5.3296]
[1754229292880,0.001,3497.3,3497.2,8.3101943]
[1754229293049,0.001,3497.3,3497.2,8.7496]
[1754229295277,0.001,3497.3,3497.2,8.2816]
[1754229295658,0.001,3497.3,3497.2,8.7496]
[1754229296092,0.001,3497.3,3497.2,8.8928]
[1754229300220,0.001,3497.3,3497.2,3.5632]
[1754229300413,0.9201,3497.3,3497.2,3.42]
[1754229301211,0.001,3497.3,3497.2,3.42]
[1754229301667,0.001,3497.3,3497.2,3.4485943]
[1754229302782,0.001,3497.3,3497.2,3.9182]
[1754229302982,0.001,3497.3,3497.2,3.42]
[1754229303683,0.9201,3497.3,3497.2,3.42]
[1754229303998,0.9201,3497.3,3497.2,7.794]
[1754229304439,0.9201,3497.3,3497.2,3.42]
[1754229304714,0.9201,3497.3,3497.2,7.794]
[1754229305126,0.9201,3497.3,3496.7,3.42]
[1754229305332,0.9191,3497.2,3496.8,4.374]
[1754229305624,0.9191,3497.1,3496.7,3.42]
[1754229305822,0.9191,3497.0,3496.8,4.374]
[1754229306125,0.9191,3496.9,3496.8,4.374]
[1754229306282,0.9191,3496.9,3496.8,7.794]
[1754229309499,0.001,3497.3,3496.8,8.2922]
[1754229309684,0.001,3497.3,3496.9,0.4982]
[1754229309882,0.001,3497.3,3497.0,4.374]
[1754229310089,0.9201,3497.3,3497.0,4.374]
[1754229311720,0.001,3497.3,3497.1,0.4982]
[1754229311938,0.001,3497.3,3497.2,0.4982]
[1754229312240,0.001,3497.3,3497.0,4.374]
[1754229312536,0.001,3497.3,3497.0,4.8722]
[1754229312685,0.001,3497.3,3497.1,0.4982]
[1754229313099,0.001,3497.3,3497.2,4.374]
[1754229313499,0.9201,3497.3,3497.2,4.374]
[1754229315492,0.001,3497.3,3497.2,7.794]
[1754229316026,0.001,3497.3,3497.2,8.2922]
[1754229316704,0.001,3497.3,3497.2,8.7577]
[1754229317239,0.001,3497.3,3497.2,8.2922]
[1754229318242,0.001,3497.3,3497.2,4.374]
[1754229318421,0.001,3497.3,3497.1,0.1432]
[1754229318622,0.001,3497.3,3497.2,4.374]
[1754229321241,0.001,3497.3,3497.0,3.42]
[1754229321242,0.9201,3497.3,3497.1,4.374]
[1754229321426,0.9201,3497.3,3497.0,4.374]
[1754229321635,0.4577,3497.2,3497.0,4.374]
[1754229322163,0.9191,3497.1,3497.0,4.374]
[1754229322335,0.9191,3497.1,3496.9,4.376]
[1754229322505,0.001,3497.3,3496.9,4.376]
[1754229322712,0.9191,3497.2,3496.9,4.376]
[1754229322928,0.9191,3497.1,3496.9,4.376]
[1754229323142,0.9191,3497.0,3496.9,4.376]
[1754229323339,0.001,3497.3,3496.9,4.376]
[1754229323541,0.4614,3497.2,3496.9,4.376]
[1754229323752,0.9191,3497.2,3496.9,4.376]
[1754229323912,0.001,3497.3,3496.9,4.376]
[1754229324239,0.9191,3497.1,3496.9,4.376]
[1754229324610,0.9191,3497.0,3496.9,4.376]
[1754229325143,0.9191,3497.0,3496.9,0.002]
[1754229326608,0.001,3497.3,3496.9,3.9202]
[1754229326813,0.001,3497.3,3497.2,16.05475833]
[1754229327017,0.001,3497.3,3497.2,20.42875833]
[1754229327347,0.001,3497.3,3497.2,21.39245833]
[1754229332321,0.001,3497.3,3497.2,20.92695833]
[1754229333048,0.001,3497.3,3497.2,4.374]
[1754229333256,0.9218,3497.3,3497.2,7.794]
[1754229333715,0.001,3497.3,3497.2,7.794]
[1754229333921,0.001,3497.3,3497.2,3.42]
[1754229334252,0.9218,3497.3,3497.2,7.794]
[1754229334847,0.9218,3497.3,3497.2,3.42]
[1754229338353,0.9218,3497.3,3497.0,3.42]
[1754229338515,0.9208,3497.2,3497.0,3.42]
[1754229338716,0.4351,3497.1,3497.0,3.42]
[1754229338915,0.9208,3497.1,3497.0,3.42]
[1754229339439,0.4867,3497.3,3497.0,3.42]
[1754229339652,0.9208,3497.2,3497.0,3.42]
[1754229339830,0.001,3497.3,3497.0,3.42]
[1754229340038,0.9208,3497.1,3497.0,3.42]
[1754229342260,0.9208,3497.1,3496.9,3.422]
[1754229342459,0.9208,3497.0,3496.9,3.422]
[1754229345061,0.001,3497.3,3496.9,3.422]
[1754229345261,0.9218,3497.3,3496.9,3.422]
[1754229345834,0.9208,3497.2,3496.9,3.422]
[1754229346065,0.001,3497.3,3497.0,0.4517]
[1754229346371,0.9218,3497.3,3496.9,3.422]
[1754229346780,0.001,3497.3,3496.9,3.422]
[1754229346964,0.001,3497.3,3497.0,0.4517]
[1754229347570,0.9218,3497.3,3496.9,3.422]
[1754229347943,0.9218,3497.3,3496.9,8.2477]
[1754229350872,0.001,3497.3,3496.9,7.796]
[1754229351183,0.001,3497.3,3497.0,4.3072]
[1754229351682,0.001,3497.3,3497.1,0.4517]
[1754229357194,0.001,3497.3,3497.1,0.4537]
[1754229360704,0.001,3497.3,3497.2,0.9206]
[1754229361215,0.001,3497.3,3497.2,4.3406]
[1754229361529,0.001,3497.3,3497.2,4.5123943]
[1754229361809,0.001,3497.3,3497.2,4.598417]
[1754229362014,0.001,3497.3,3497.2,4.6270113]
[1754229362217,0.001,3497.3,3497.2,4.598417]
[1754229362716,0.001,3497.3,3497.2,4.6270113]
[1754229365204,0.001,3497.3,3497.2,4.598417]
[1754229366822,0.001,3497.4,3497.3,3.419]
[1754229367113,0.001,3497.4,3497.3,8.7116]
[1754229370529,0.001,3497.4,3497.3,9.2616]
[1754229371226,0.001,3497.6,3497.4,3.55]
[1754229371416,0.001,3497.6,3497.5,31.62435018]
[1754229371597,0.001,3497.6,3497.5,32.51635833]
[1754229372003,0.001,3497.6,3497.5,32.65955833]
[1754229372731,0.001,3497.7,3497.6,3.968]
[1754229373026,0.001,3497.7,3497.6,23.84375833]
[1754229373593,0.001,3497.7,3497.6,24.30315833]
[1754229373895,0.001,3497.7,3497.6,24.76435833]
[1754229377934,0.001,3497.7,3497.6,31.96435833]
[1754229378502,0.001,3497.7,3497.6,32.18421627]
[1754229380508,0.001,3497.7,3497.6,31.72301627]
[1754229380942,0.001,3497.7,3497.6,31.83761727]
[1754229383539,0.4731,3498.0,3497.8,3.416]
[1754229383746,0.001,3498.0,3497.9,4.37]
[1754229384209,0.001,3498.0,3497.9,4.9777]
[1754229384409,0.9376,3498.0,3497.9,4.9777]
[1754229385155,0.001,3498.0,3497.9,4.9777]
[1754229387320,0.001,3498.0,3497.9,5.4371]
[1754229388857,0.001,3498.0,3497.9,4.9777]
[1754229389435,0.001,3498.0,3497.9,8.3937]
[1754229391430,0.9292,3498.0,3497.9,3.416]
[1754229391830,0.9292,3498.0,3497.9,7.785]
[1754229392570,0.001,3498.0,3497.9,7.785]
[1754229392973,0.9292,3498.0,3497.9,7.785]
[1754229395270,0.9292,3498.0,3497.9,3.416]
[1754229395471,0.9292,3498.0,3497.9,7.785]
[1754229397873,0.001,3498.0,3497.9,7.785]
[1754229398268,0.9292,3498.0,3497.9,7.785]
[1754229402144,0.001,3498.0,3497.9,7.785]
[1754229402474,0.001,3498.0,3497.9,8.7222]